[Event "*** Titled Tuesday Blitz"]
[Site "Chess.com"]
[Date "2020.11.24"]
[Round "5"]
[White "onetowin"]
[Black "Matols"]
[Result "1/2-1/2"]
[WhiteElo "2110"]
[BlackElo "2238"]
[TimeControl "180+1"]
[EndTime "11:13:34 PST"]
[Termination "Game drawn by repetition"]

1. d4 {[%clk 0:03:00.9]} 1... Nf6 {[%clk 0:02:59.3]} 2. Nf3 {[%clk 0:02:59.9]}
2... e6 {[%clk 0:02:59]} 3. g3 {[%clk 0:02:59.7]} 3... d5 {[%clk 0:02:55.4]} 4.
Bg2 {[%clk 0:02:59.6]} 4... b5 {[%clk 0:02:50]} 5. O-O {[%clk 0:02:58.4]} 5...
Bb7 {[%clk 0:02:45.1]} 6. a4 {[%clk 0:02:57.4]} 6... a6 {[%clk 0:02:40.8]} 7.
axb5 {[%clk 0:02:51.8]} 7... axb5 {[%clk 0:02:40.3]} 8. Rxa8 {[%clk 0:02:52.7]}
8... Bxa8 {[%clk 0:02:40.3]} 9. Nbd2 {[%clk 0:02:52.4]} 9... c5 {[%clk
0:02:30.9]} 10. c3 {[%clk 0:02:51.3]} 10... Nbd7 {[%clk 0:02:23.2]} 11. Qc2
{[%clk 0:02:48.4]} 11... Be7 {[%clk 0:02:19.9]} 12. dxc5 {[%clk 0:02:43.8]}
12... Nxc5 {[%clk 0:02:17.8]} 13. Re1 {[%clk 0:02:42.6]} 13... O-O {[%clk
0:02:14.9]} 14. Nd4 {[%clk 0:02:38.8]} 14... Qb6 {[%clk 0:02:09.4]} 15. f3
{[%clk 0:02:28.1]} 15... Rc8 {[%clk 0:02:03.1]} 16. Kh1 {[%clk 0:02:26.7]} 16...
Bb7 {[%clk 0:01:48.5]} 17. e4 {[%clk 0:02:25.1]} 17... dxe4 {[%clk 0:01:46.4]}
18. fxe4 {[%clk 0:02:24.1]} 18... h6 {[%clk 0:01:27.4]} 19. e5 {[%clk
0:02:13.5]} 19... Ng4 {[%clk 0:01:08.5]} 20. N2f3 {[%clk 0:02:06.7]} 20... h5
{[%clk 0:00:34.6]} 21. h3 {[%clk 0:01:53.7]} 21... Nh6 {[%clk 0:00:34]} 22. Bxh6
{[%clk 0:01:37.1]} 22... gxh6 {[%clk 0:00:33.9]} 23. Qe2 {[%clk 0:01:34.5]}
23... b4 {[%clk 0:00:30.6]} 24. Nh4 {[%clk 0:01:24.7]} 24... bxc3 {[%clk
0:00:28.1]} 25. bxc3 {[%clk 0:01:24]} 25... Bxg2+ {[%clk 0:00:27.5]} 26. Kxg2
{[%clk 0:01:19.8]} 26... Bxh4 {[%clk 0:00:25.7]} 27. gxh4 {[%clk 0:01:19.4]}
27... Qb7+ {[%clk 0:00:23.7]} 28. Kh2 {[%clk 0:01:18.5]} 28... Kh7 {[%clk
0:00:20.2]} 29. Qxh5 {[%clk 0:01:15.6]} 29... Rg8 {[%clk 0:00:19.7]} 30. Re2
{[%clk 0:01:07.2]} 30... Nd3 {[%clk 0:00:18.2]} 31. Qf3 {[%clk 0:00:54.9]} 31...
Qxf3 {[%clk 0:00:14.4]} 32. Nxf3 {[%clk 0:00:54.1]} 32... Nf4 {[%clk 0:00:14.4]}
33. Rc2 {[%clk 0:00:51.2]} 33... Rc8 {[%clk 0:00:10.1]} 34. Nd4 {[%clk 0:00:47]}
34... Kg6 {[%clk 0:00:09.7]} 35. c4 {[%clk 0:00:45.7]} 35... Rc5 {[%clk
0:00:08]} 36. Nb3 {[%clk 0:00:43.7]} 36... Rxe5 {[%clk 0:00:07.7]} 37. c5 {[%clk
0:00:44]} 37... Nd5 {[%clk 0:00:06.3]} 38. c6 {[%clk 0:00:41.3]} 38... Nc7
{[%clk 0:00:06.2]} 39. Nd4 {[%clk 0:00:35.7]} 39... Re3 {[%clk 0:00:05.4]} 40.
Rb2 {[%clk 0:00:30]} 40... Rc3 {[%clk 0:00:04.4]} 41. Rb7 {[%clk 0:00:23.8]}
41... Nd5 {[%clk 0:00:04.5]} 42. Rd7 {[%clk 0:00:22.9]} 42... Nb6 {[%clk
0:00:02.1]} 43. Rd6 {[%clk 0:00:20.2]} 43... Nd5 {[%clk 0:00:02]} 44. Nb5 {[%clk
0:00:18.8]} 44... Rc2+ {[%clk 0:00:01.9]} 45. Kg3 {[%clk 0:00:17.4]} 45... Kf6
{[%clk 0:00:02.2]} 46. Kf3 {[%clk 0:00:16.5]} 46... Ke7 {[%clk 0:00:02]} 47.
Rd7+ {[%clk 0:00:16.4]} 47... Kf6 {[%clk 0:00:02.3]} 48. Nd6 {[%clk 0:00:15.8]}
48... Ke5 {[%clk 0:00:02]} 49. Nxf7+ {[%clk 0:00:14.9]} 49... Kd4 {[%clk
0:00:02.3]} 50. Nxh6 {[%clk 0:00:15.1]} 50... e5 {[%clk 0:00:02.3]} 51. Ng4
{[%clk 0:00:12.7]} 51... e4+ {[%clk 0:00:02.6]} 52. Kg3 {[%clk 0:00:11.9]} 52...
e3 {[%clk 0:00:02.9]} 53. Rxd5+ {[%clk 0:00:10.9]} 53... Kxd5 {[%clk 0:00:02.9]}
54. Nxe3+ {[%clk 0:00:11.8]} 54... Kxc6 {[%clk 0:00:03.1]} 55. Ng4 {[%clk
0:00:12.7]} 55... Rc3+ {[%clk 0:00:02.6]} 56. Kg2 {[%clk 0:00:12.1]} 56... Kd6
{[%clk 0:00:02.6]} 57. h5 {[%clk 0:00:12.4]} 57... Ke6 {[%clk 0:00:02.8]} 58. h6
{[%clk 0:00:12.5]} 58... Kf7 {[%clk 0:00:02.6]} 59. Kh2 {[%clk 0:00:10]} 59...
Kg6 {[%clk 0:00:02.8]} 60. Kg2 {[%clk 0:00:10]} 60... Ra3 {[%clk 0:00:03]} 61.
Kh2 {[%clk 0:00:10.2]} 61... Rb3 {[%clk 0:00:03.3]} 62. Kg2 {[%clk 0:00:10.1]}
62... Rc3 {[%clk 0:00:03.7]} 63. Kh2 {[%clk 0:00:10.3]} 63... Rd3 {[%clk
0:00:04]} 64. Kg2 {[%clk 0:00:09.2]} 64... Rc3 {[%clk 0:00:04.3]} 65. Kh2 {[%clk
0:00:09.2]} 65... Ra3 {[%clk 0:00:04.4]} 66. Kg2 {[%clk 0:00:08.2]} 66... Ra2+
{[%clk 0:00:04.7]} 67. Kg3 {[%clk 0:00:07]} 67... Ra3+ {[%clk 0:00:04.9]} 68.
Kh4 {[%clk 0:00:07.2]} 68... Ra4 {[%clk 0:00:04.9]} 69. Kg3 {[%clk 0:00:07]}
69... Ra3+ {[%clk 0:00:05]} 70. Kh4 {[%clk 0:00:06.5]} 70... Ra4 {[%clk
0:00:05]} 71. Kg3 {[%clk 0:00:06.3]} 71... Ra3+ {[%clk 0:00:05.3]} 1/2-1/2

[Event "*** Titled Tuesday Blitz"]
[Site "Chess.com"]
[Date "2020.11.24"]
[Round "5"]
[White "eCztery"]
[Black "lefonghua"]
[Result "0-1"]
[WhiteElo "2351"]
[BlackElo "2512"]
[TimeControl "180+1"]
[EndTime "11:13:36 PST"]
[Termination "lefonghua won by resignation"]

1. e4 {[%clk 0:02:49.2]} 1... c5 {[%clk 0:02:59.8]} 2. Nf3 {[%clk 0:02:44]} 2...
g6 {[%clk 0:02:59.8]} 3. c3 {[%clk 0:02:41.5]} 3... Nc6 {[%clk 0:02:59.2]} 4. d4
{[%clk 0:02:41.9]} 4... d5 {[%clk 0:02:59.6]} 5. exd5 {[%clk 0:02:36.1]} 5...
Qxd5 {[%clk 0:02:59.4]} 6. Be3 {[%clk 0:02:36.9]} 6... cxd4 {[%clk 0:02:53]} 7.
cxd4 {[%clk 0:02:33]} 7... Bg7 {[%clk 0:02:48.4]} 8. Nc3 {[%clk 0:02:33.5]} 8...
Qa5 {[%clk 0:02:45.6]} 9. Bc4 {[%clk 0:02:31]} 9... Nf6 {[%clk 0:02:41.5]} 10.
O-O {[%clk 0:02:28.1]} 10... O-O {[%clk 0:02:35.1]} 11. Qd2 {[%clk 0:02:11.9]}
11... Bg4 {[%clk 0:02:26.5]} 12. Be2 {[%clk 0:01:58.1]} 12... Rfd8 {[%clk
0:02:01.6]} 13. h3 {[%clk 0:01:56.6]} 13... Bxf3 {[%clk 0:01:48.4]} 14. Bxf3
{[%clk 0:01:57.5]} 14... e5 {[%clk 0:01:48.1]} 15. d5 {[%clk 0:01:50.5]} 15...
Ne7 {[%clk 0:01:41]} 16. Rad1 {[%clk 0:01:33.8]} 16... Nf5 {[%clk 0:01:31.2]}
17. Bg5 {[%clk 0:01:32.5]} 17... h6 {[%clk 0:01:27.9]} 18. Bxf6 {[%clk
0:01:32.4]} 18... Bxf6 {[%clk 0:01:28.4]} 19. d6 {[%clk 0:01:17.3]} 19... Rxd6
{[%clk 0:01:17.5]} 20. Nd5 {[%clk 0:01:06]} 20... Qxd2 {[%clk 0:01:12.4]} 21.
Rxd2 {[%clk 0:00:54.7]} 21... Kg7 {[%clk 0:01:00.1]} 22. Rfd1 {[%clk 0:00:49.1]}
22... Rad8 {[%clk 0:00:50.9]} 23. Kf1 {[%clk 0:00:31.9]} 23... b6 {[%clk
0:00:46.6]} 24. Ke1 {[%clk 0:00:26]} 24... Nd4 {[%clk 0:00:46]} 25. Be4 {[%clk
0:00:26.4]} 25... Bg5 {[%clk 0:00:43.3]} 26. f4 {[%clk 0:00:16.1]} 26... Bh4+
{[%clk 0:00:36.6]} 27. Kf1 {[%clk 0:00:15.4]} 27... f6 {[%clk 0:00:25.8]} 28.
fxe5 {[%clk 0:00:15]} 28... fxe5 {[%clk 0:00:26.7]} 29. Ne3 {[%clk 0:00:14.6]}
29... Bg5 {[%clk 0:00:25.3]} 30. Rd3 {[%clk 0:00:12.1]} 30... Rf8+ {[%clk
0:00:21.7]} 31. Kg1 {[%clk 0:00:12.3]} 31... Bxe3+ {[%clk 0:00:20.4]} 32. Rxe3
{[%clk 0:00:12.8]} 32... Ne2+ {[%clk 0:00:20.5]} 33. Rxe2 {[%clk 0:00:12.8]}
33... Rxd1+ {[%clk 0:00:20.6]} 34. Kh2 {[%clk 0:00:13.7]} 34... Rd4 {[%clk
0:00:20.3]} 35. Bc2 {[%clk 0:00:12]} 35... Re8 {[%clk 0:00:20.6]} 36. Be4 {[%clk
0:00:10.7]} 36... Re7 {[%clk 0:00:20.9]} 37. b3 {[%clk 0:00:10.7]} 37... Red7
{[%clk 0:00:19.7]} 38. Re3 {[%clk 0:00:10.6]} 38... Rd2 {[%clk 0:00:19.7]} 39.
Rg3 {[%clk 0:00:10.9]} 39... R7d6 {[%clk 0:00:20.2]} 40. a4 {[%clk 0:00:11.4]}
40... Rb2 {[%clk 0:00:20]} 41. h4 {[%clk 0:00:11.7]} 41... Kf7 {[%clk
0:00:19.4]} 42. Kh3 {[%clk 0:00:11]} 42... Rf6 {[%clk 0:00:18]} 43. Rd3 {[%clk
0:00:09.5]} 43... Kg7 {[%clk 0:00:17.4]} 44. Rd7+ {[%clk 0:00:09.3]} 44... Rf7
{[%clk 0:00:18]} 45. Rd3 {[%clk 0:00:07.9]} 45... Re2 {[%clk 0:00:17]} 46. Bf3
{[%clk 0:00:07.6]} 46... Re1 {[%clk 0:00:16.8]} 47. Rd6 {[%clk 0:00:07.4]} 47...
e4 {[%clk 0:00:16.9]} 48. Bg4 {[%clk 0:00:06.4]} 48... h5 {[%clk 0:00:16]} 49.
Bd7 {[%clk 0:00:04.9]} 49... e3 {[%clk 0:00:15.6]} 50. Bb5 {[%clk 0:00:04.5]}
50... e2 {[%clk 0:00:15.6]} 51. Re6 {[%clk 0:00:04.5]} 51... Rf2 {[%clk
0:00:15]} 52. Kg3 {[%clk 0:00:04.4]} 52... Rf5 {[%clk 0:00:13.5]} 53. Rxe2
{[%clk 0:00:04.3]} 53... Rxe2 {[%clk 0:00:13.4]} 54. Bxe2 {[%clk 0:00:05.2]}
54... Re5 {[%clk 0:00:14.1]} 55. Bc4 {[%clk 0:00:06.1]} 55... Kf6 {[%clk
0:00:14.7]} 56. Kf4 {[%clk 0:00:07]} 56... Re1 {[%clk 0:00:14.3]} 57. g4 {[%clk
0:00:07.5]} 57... hxg4 {[%clk 0:00:13.4]} 58. Kxg4 {[%clk 0:00:08.4]} 58... a5
{[%clk 0:00:13.9]} 59. Bd5 {[%clk 0:00:08.1]} 59... Rg1+ {[%clk 0:00:14]} 60.
Kf4 {[%clk 0:00:08.5]} 60... Rf1+ {[%clk 0:00:13.7]} 61. Kg4 {[%clk 0:00:08.9]}
61... Rg1+ {[%clk 0:00:13.5]} 62. Kf4 {[%clk 0:00:09]} 62... Rb1 {[%clk
0:00:14.4]} 63. Bc4 {[%clk 0:00:09.2]} 63... Rb2 {[%clk 0:00:14.2]} 64. Kg4
{[%clk 0:00:10.1]} 64... Rg2+ {[%clk 0:00:13.9]} 65. Kf4 {[%clk 0:00:10.6]}
65... Rh2 {[%clk 0:00:14.1]} 66. Kg4 {[%clk 0:00:11.5]} 66... Rd2 {[%clk
0:00:14.7]} 67. Kf4 {[%clk 0:00:11.9]} 67... Rd4+ {[%clk 0:00:15.3]} 68. Kg3
{[%clk 0:00:12.4]} 68... Kf5 {[%clk 0:00:15.7]} 69. Be2 {[%clk 0:00:12.2]} 69...
Ke4 {[%clk 0:00:15.1]} 70. h5 {[%clk 0:00:11.1]} 70... gxh5 {[%clk 0:00:15]} 71.
Bxh5 {[%clk 0:00:12]} 71... Ke3 {[%clk 0:00:15.5]} 72. Bg6 {[%clk 0:00:11.8]}
72... Rb4 {[%clk 0:00:15.6]} 73. Bf7 {[%clk 0:00:12]} 73... Kd2 {[%clk 0:00:16]}
74. Kf3 {[%clk 0:00:12.3]} 74... Kc3 {[%clk 0:00:16.9]} 75. Ke3 {[%clk
0:00:12.8]} 75... Rxb3 {[%clk 0:00:17.4]} 76. Bxb3 {[%clk 0:00:12.1]} 76... Kxb3
{[%clk 0:00:18.3]} 77. Kd3 {[%clk 0:00:13]} 77... Kxa4 {[%clk 0:00:18.9]} 78.
Kc4 {[%clk 0:00:13.9]} 78... b5+ {[%clk 0:00:18.8]} 79. Kc3 {[%clk 0:00:14.8]}
79... Ka3 {[%clk 0:00:19.5]} 80. Kc2 {[%clk 0:00:15]} 80... Ka2 {[%clk
0:00:20.2]} 81. Kc3 {[%clk 0:00:14.9]} 81... b4+ {[%clk 0:00:21.1]} 82. Kc4
{[%clk 0:00:14.8]} 82... b3 {[%clk 0:00:22]} 83. Kb5 {[%clk 0:00:14.4]} 83... b2
{[%clk 0:00:22.9]} 84. Ka4 {[%clk 0:00:15.3]} 84... b1=Q {[%clk 0:00:22.8]} 85.
Kxa5 {[%clk 0:00:15.7]} 85... Qb3 {[%clk 0:00:23.1]} 0-1

[Event "*** Titled Tuesday Blitz"]
[Site "Chess.com"]
[Date "2020.11.24"]
[Round "5"]
[White "pooh2012"]
[Black "temus_galaktionov"]
[Result "0-1"]
[WhiteElo "2483"]
[BlackElo "2689"]
[TimeControl "180+1"]
[EndTime "11:13:41 PST"]
[Termination "temus_galaktionov won by resignation"]

1. d4 {[%clk 0:03:00.9]} 1... c6 {[%clk 0:02:56.5]} 2. Nc3 {[%clk 0:02:59.2]}
2... g6 {[%clk 0:02:54.5]} 3. h4 {[%clk 0:02:57.9]} 3... d6 {[%clk 0:02:53.3]}
4. h5 {[%clk 0:02:57.1]} 4... Bg7 {[%clk 0:02:52.6]} 5. e4 {[%clk 0:02:47.6]}
5... Qb6 {[%clk 0:02:52.1]} 6. Nge2 {[%clk 0:02:27]} 6... e5 {[%clk 0:02:49.1]}
7. d5 {[%clk 0:02:15.3]} 7... c5 {[%clk 0:02:41.8]} 8. Ng3 {[%clk 0:01:48.1]}
8... Nf6 {[%clk 0:02:38.1]} 9. Bg5 {[%clk 0:01:00.7]} 9... Nbd7 {[%clk
0:02:24.4]} 10. Qd2 {[%clk 0:00:51.2]} 10... h6 {[%clk 0:02:20.6]} 11. Be3
{[%clk 0:00:42.7]} 11... a6 {[%clk 0:02:19.7]} 12. Rb1 {[%clk 0:00:35.7]} 12...
Ng4 {[%clk 0:02:18.6]} 13. hxg6 {[%clk 0:00:34.3]} 13... fxg6 {[%clk 0:02:19.5]}
14. Be2 {[%clk 0:00:29.2]} 14... Ndf6 {[%clk 0:02:18]} 15. b4 {[%clk 0:00:27.2]}
15... Nxe3 {[%clk 0:02:15.1]} 16. Qxe3 {[%clk 0:00:26.3]} 16... Nd7 {[%clk
0:02:01.8]} 17. Na4 {[%clk 0:00:24.3]} 17... Qc7 {[%clk 0:01:59]} 18. bxc5
{[%clk 0:00:24.6]} 18... dxc5 {[%clk 0:01:56.5]} 19. c4 {[%clk 0:00:23.4]} 19...
Qa5+ {[%clk 0:01:34.3]} 20. Nc3 {[%clk 0:00:22.3]} 20... Nf6 {[%clk 0:01:33.7]}
21. O-O {[%clk 0:00:21.7]} 21... O-O {[%clk 0:01:32.5]} 22. Qd3 {[%clk
0:00:14.1]} 22... Ne8 {[%clk 0:01:24.7]} 23. Nd1 {[%clk 0:00:13.6]} 23... Nd6
{[%clk 0:01:22.5]} 24. Ne3 {[%clk 0:00:13.6]} 24... Bd7 {[%clk 0:01:19.9]} 25.
Bg4 {[%clk 0:00:13.1]} 25... Qc7 {[%clk 0:01:17.6]} 26. Be6+ {[%clk 0:00:11.6]}
26... Kh7 {[%clk 0:01:15.8]} 27. Bxd7 {[%clk 0:00:11.4]} 27... Qxd7 {[%clk
0:01:16.7]} 28. Rb6 {[%clk 0:00:12]} 28... h5 {[%clk 0:01:10.8]} 29. Rfb1 {[%clk
0:00:11.7]} 29... Rf7 {[%clk 0:01:10.2]} 30. f3 {[%clk 0:00:11.2]} 30... Bf6
{[%clk 0:01:05.8]} 31. Qa3 {[%clk 0:00:09.6]} 31... Bd8 {[%clk 0:01:04.4]} 32.
R6b2 {[%clk 0:00:07.6]} 32... b6 {[%clk 0:01:01.8]} 33. Rxb6 {[%clk 0:00:07.7]}
33... Bxb6 {[%clk 0:01:02.7]} 34. Rxb6 {[%clk 0:00:08.5]} 34... Rc8 {[%clk
0:00:50.5]} 35. Qxa6 {[%clk 0:00:06.6]} 35... Rd8 {[%clk 0:00:48.5]} 36. Rc6
{[%clk 0:00:05.8]} 36... Rff8 {[%clk 0:00:38.5]} 37. Qb6 {[%clk 0:00:05.1]}
37... Nf7 {[%clk 0:00:37.8]} 38. Rc7 {[%clk 0:00:05.2]} 38... Qd6 {[%clk
0:00:37.1]} 39. Qxd6 {[%clk 0:00:04.5]} 39... Rxd6 {[%clk 0:00:38]} 40. Rxc5
{[%clk 0:00:05]} 40... Ra8 {[%clk 0:00:37]} 41. Rc6 {[%clk 0:00:04.3]} 41...
Rxc6 {[%clk 0:00:35.1]} 42. dxc6 {[%clk 0:00:05.2]} 42... Rc8 {[%clk 0:00:35.7]}
43. Ne2 {[%clk 0:00:04.8]} 43... Rxc6 {[%clk 0:00:35.6]} 44. Nc1 {[%clk
0:00:02.8]} 44... Kg7 {[%clk 0:00:33.8]} 45. Nd3 {[%clk 0:00:03.3]} 45... Ra6
{[%clk 0:00:32.1]} 46. c5 {[%clk 0:00:03]} 46... Rxa2 {[%clk 0:00:31]} 47. c6
{[%clk 0:00:03.2]} 47... Ra3 {[%clk 0:00:29.1]} 48. c7 {[%clk 0:00:02.9]} 48...
Rc3 {[%clk 0:00:27.7]} 49. Nd5 {[%clk 0:00:01.9]} 49... Rc4 {[%clk 0:00:24.4]}
50. N3b4 {[%clk 0:00:02.1]} 50... Nd6 {[%clk 0:00:21.6]} 51. Na6 {[%clk
0:00:02.3]} 51... Kf7 {[%clk 0:00:19.6]} 52. Nb8 {[%clk 0:00:02.4]} 52... Ke6
{[%clk 0:00:19.1]} 53. Kh2 {[%clk 0:00:02.6]} 53... Ne8 {[%clk 0:00:17.2]} 54.
Na6 {[%clk 0:00:02.3]} 54... Rc6 {[%clk 0:00:16.3]} 55. Nab4 {[%clk 0:00:01.5]}
55... Rc1 {[%clk 0:00:15.6]} 56. Nd3 {[%clk 0:00:01.7]} 56... Nxc7 {[%clk
0:00:14.6]} 57. Nf2 {[%clk 0:00:02.6]} 57... Nxd5 {[%clk 0:00:12.9]} 58. exd5+
{[%clk 0:00:03.5]} 58... Kxd5 {[%clk 0:00:13.7]} 59. Nd3 {[%clk 0:00:04.2]}
59... Rc4 {[%clk 0:00:13.5]} 60. Nf2 {[%clk 0:00:04.7]} 60... Rd4 {[%clk
0:00:13.4]} 61. Kg3 {[%clk 0:00:05.2]} 61... Ke6 {[%clk 0:00:13.4]} 62. Nh3
{[%clk 0:00:05.3]} 62... Kf5 {[%clk 0:00:12.9]} 63. Nf2 {[%clk 0:00:05.9]} 63...
g5 {[%clk 0:00:12.6]} 64. Kh2 {[%clk 0:00:05.5]} 64... g4 {[%clk 0:00:11.8]} 65.
fxg4+ {[%clk 0:00:05.4]} 65... hxg4 {[%clk 0:00:12.7]} 66. Kg3 {[%clk
0:00:05.9]} 66... Ra4 {[%clk 0:00:10.6]} 67. Kh2 {[%clk 0:00:04.2]} 67... e4
{[%clk 0:00:10.1]} 68. Nd1 {[%clk 0:00:04.3]} 68... Ra3 {[%clk 0:00:09.3]} 69.
Kg1 {[%clk 0:00:03.3]} 69... g3 {[%clk 0:00:09.7]} 70. Kf1 {[%clk 0:00:03.5]}
70... Kf4 {[%clk 0:00:08.6]} 71. Ke2 {[%clk 0:00:04.4]} 71... Ra2+ {[%clk
0:00:08]} 72. Kf1 {[%clk 0:00:05]} 72... e3 {[%clk 0:00:07.8]} 73. Ke1 {[%clk
0:00:05.5]} 73... Rxg2 {[%clk 0:00:04.9]} 74. Nc3 {[%clk 0:00:04.6]} 74... Kf3
{[%clk 0:00:04.5]} 75. Kd1 {[%clk 0:00:04.4]} 75... Rg1+ {[%clk 0:00:03.9]} 76.
Kc2 {[%clk 0:00:04.5]} 76... e2 {[%clk 0:00:04.7]} 77. Nxe2 {[%clk 0:00:04.2]}
77... Kxe2 {[%clk 0:00:05.2]} 0-1

[Event "*** Titled Tuesday Blitz"]
[Site "Chess.com"]
[Date "2020.11.24"]
[Round "5"]
[White "GoltsevDmitry2000"]
[Black "geordie_derraugh"]
[Result "0-1"]
[WhiteElo "2659"]
[BlackElo "2474"]
[TimeControl "180+1"]
[EndTime "11:13:49 PST"]
[Termination "geordie_derraugh won by checkmate"]

1. e4 {[%clk 0:03:00]} 1... c5 {[%clk 0:02:59.9]} 2. Nf3 {[%clk 0:02:59.8]} 2...
e6 {[%clk 0:03:00.1]} 3. d4 {[%clk 0:02:59.2]} 3... cxd4 {[%clk 0:03:00.3]} 4.
Nxd4 {[%clk 0:03:00.1]} 4... Nc6 {[%clk 0:03:00.8]} 5. Nc3 {[%clk 0:03:00.1]}
5... Qc7 {[%clk 0:03:00.6]} 6. Be2 {[%clk 0:02:56.1]} 6... a6 {[%clk 0:03:00]}
7. Be3 {[%clk 0:02:47.4]} 7... Nf6 {[%clk 0:02:58.6]} 8. O-O {[%clk 0:02:46.3]}
8... d6 {[%clk 0:02:54.8]} 9. f4 {[%clk 0:02:45.8]} 9... Bd7 {[%clk 0:02:53.9]}
10. Bf3 {[%clk 0:02:45.6]} 10... b5 {[%clk 0:02:43.9]} 11. a3 {[%clk 0:02:43.9]}
11... Be7 {[%clk 0:02:41.7]} 12. Qd2 {[%clk 0:02:43.9]} 12... e5 {[%clk
0:02:23.7]} 13. Nf5 {[%clk 0:02:41.6]} 13... Bxf5 {[%clk 0:02:17]} 14. exf5
{[%clk 0:02:42.5]} 14... Rd8 {[%clk 0:02:01.5]} 15. Rad1 {[%clk 0:02:40.2]}
15... O-O {[%clk 0:01:56]} 16. Qf2 {[%clk 0:02:40.2]} 16... Qd7 {[%clk
0:01:43.9]} 17. Qg3 {[%clk 0:02:36.2]} 17... Nd4 {[%clk 0:01:35.4]} 18. fxe5
{[%clk 0:02:24.5]} 18... Nxf5 {[%clk 0:01:23.3]} 19. Qf2 {[%clk 0:02:15.7]}
19... Nxe3 {[%clk 0:01:11.3]} 20. Qxe3 {[%clk 0:02:16.6]} 20... Qe6 {[%clk
0:01:11.5]} 21. Bd5 {[%clk 0:02:05.8]} 21... Nxd5 {[%clk 0:01:07.6]} 22. Rxd5
{[%clk 0:02:06.7]} 22... Bf6 {[%clk 0:00:54.8]} 23. Rxf6 {[%clk 0:01:37.8]}
23... gxf6 {[%clk 0:00:55.7]} 24. Qg3+ {[%clk 0:01:37.8]} 24... Kh8 {[%clk
0:00:55.1]} 25. exd6 {[%clk 0:01:38.1]} 25... Rg8 {[%clk 0:00:51.2]} 26. Qf2
{[%clk 0:01:34.5]} 26... Rxd6 {[%clk 0:00:41.4]} 27. Rh5 {[%clk 0:01:19]} 27...
Qg4 {[%clk 0:00:38.4]} 28. Rf5 {[%clk 0:01:06.2]} 28... Rd2 {[%clk 0:00:24.5]}
29. Qxd2 {[%clk 0:01:00.1]} 29... Qxf5 {[%clk 0:00:24.8]} 30. Ne2 {[%clk
0:00:54.8]} 30... Qe4 {[%clk 0:00:18.4]} 31. Ng3 {[%clk 0:00:50]} 31... Qe5
{[%clk 0:00:18.8]} 32. c3 {[%clk 0:00:48.3]} 32... Re8 {[%clk 0:00:18.7]} 33.
Nf1 {[%clk 0:00:41.4]} 33... Qc5+ {[%clk 0:00:18.5]} 34. Kh1 {[%clk 0:00:40.6]}
34... Qf5 {[%clk 0:00:17.3]} 35. Kg1 {[%clk 0:00:31.7]} 35... Qe5 {[%clk
0:00:16.3]} 36. Qf2 {[%clk 0:00:29.7]} 36... f5 {[%clk 0:00:15.7]} 37. Qb6
{[%clk 0:00:28]} 37... Qe6 {[%clk 0:00:14.1]} 38. Qd4+ {[%clk 0:00:27.5]} 38...
f6 {[%clk 0:00:14.5]} 39. h4 {[%clk 0:00:25.2]} 39... Rg8 {[%clk 0:00:13.6]} 40.
Ne3 {[%clk 0:00:21.5]} 40... Qe5 {[%clk 0:00:12.6]} 41. Qxe5 {[%clk 0:00:20.7]}
41... fxe5 {[%clk 0:00:13.5]} 42. Nxf5 {[%clk 0:00:21.6]} 42... Rd8 {[%clk
0:00:13.4]} 43. Nh6 {[%clk 0:00:11.9]} 43... Kg7 {[%clk 0:00:11.5]} 44. Ng4
{[%clk 0:00:12.4]} 44... e4 {[%clk 0:00:08.9]} 45. Ne3 {[%clk 0:00:09.5]} 45...
Rd2 {[%clk 0:00:08.4]} 46. b4 {[%clk 0:00:06.7]} 46... Ra2 {[%clk 0:00:06.8]}
47. c4 {[%clk 0:00:03.9]} 47... bxc4 {[%clk 0:00:03.8]} 48. Nxc4 {[%clk
0:00:04.8]} 48... Rc2 {[%clk 0:00:03.4]} 49. Ne3 {[%clk 0:00:04.3]} 49... Rc3
{[%clk 0:00:03.3]} 50. Nf5+ {[%clk 0:00:05.1]} 50... Kf6 {[%clk 0:00:03]} 51.
Nd6 {[%clk 0:00:06]} 51... Ke5 {[%clk 0:00:02.2]} 52. Nf7+ {[%clk 0:00:05.2]}
52... Kd4 {[%clk 0:00:02.6]} 53. a4 {[%clk 0:00:04.4]} 53... Ra3 {[%clk
0:00:03]} 54. b5 {[%clk 0:00:04.3]} 54... Rxa4 {[%clk 0:00:02.7]} 55. bxa6
{[%clk 0:00:02.9]} 55... Rxa6 {[%clk 0:00:02.8]} 56. Ng5 {[%clk 0:00:03.8]}
56... Ra1+ {[%clk 0:00:02.8]} 57. Kf2 {[%clk 0:00:03]} 57... e3+ {[%clk
0:00:03.1]} 58. Kg3 {[%clk 0:00:03.3]} 58... Ra2 {[%clk 0:00:03.5]} 59. Nxh7
{[%clk 0:00:03.3]} 59... e2 {[%clk 0:00:03.1]} 60. Kf2 {[%clk 0:00:03.6]} 60...
Kd3 {[%clk 0:00:03.4]} 61. Ng5 {[%clk 0:00:04.2]} 61... Ra1 {[%clk 0:00:03.1]}
62. Nf3 {[%clk 0:00:05.1]} 62... Rf1+ {[%clk 0:00:03.2]} 63. Kg3 {[%clk
0:00:05]} 63... Rxf3+ {[%clk 0:00:02.6]} 64. gxf3 {[%clk 0:00:03.4]} 64... e1=Q+
{[%clk 0:00:03.5]} 65. Kg4 {[%clk 0:00:04.3]} 65... Qg1+ {[%clk 0:00:03.5]} 66.
Kf5 {[%clk 0:00:02.7]} 66... Ke3 {[%clk 0:00:04]} 67. h5 {[%clk 0:00:02.5]}
67... Kxf3 {[%clk 0:00:03.2]} 68. h6 {[%clk 0:00:03]} 68... Qg4+ {[%clk
0:00:03.6]} 69. Kf6 {[%clk 0:00:03.1]} 69... Qh5 {[%clk 0:00:03.7]} 70. Kg7
{[%clk 0:00:03.4]} 70... Qg5+ {[%clk 0:00:04.3]} 71. Kh7 {[%clk 0:00:03.9]}
71... Kf4 {[%clk 0:00:04.6]} 72. Kh8 {[%clk 0:00:03.8]} 72... Qxh6+ {[%clk
0:00:05.2]} 73. Kg8 {[%clk 0:00:02.9]} 73... Qg6+ {[%clk 0:00:04.6]} 74. Kh8
{[%clk 0:00:03.3]} 74... Qf6+ {[%clk 0:00:05.1]} 75. Kg8 {[%clk 0:00:03.7]}
75... Qe7 {[%clk 0:00:05.5]} 76. Kh8 {[%clk 0:00:04.6]} 76... Kg5 {[%clk
0:00:06.1]} 77. Kg8 {[%clk 0:00:05.5]} 77... Kg6 {[%clk 0:00:07]} 78. Kh8 {[%clk
0:00:06.4]} 78... Qg7# {[%clk 0:00:07.5]} 0-1